[Event "Titled Tuesday Blitz November 07 Late 2023"]
[White "Krzyzanowski, Marcin"]
[Black "Oglaza, Oskar"]
[WhiteFideId "1132199"]
[BlackFideId "1194402"]
[WhiteElo "2771"]
[BlackElo "2545"]
[Result "0-1"]
[Round "8"]
[TimeControl "180+1"]
[Date "2023.11.07"]
[WhiteClock "0:00:00"]
[BlackClock "0:00:13"]
[Board "25"]

1. e4 {[%clk 0:02:53]}  c5 {[%clk 0:02:58]} 2. Nf3 {[%clk 0:02:46]}  d6 {[%clk 0:02:58]} 3. d4 {[%clk 0:02:46]}  cxd4 {[%clk 0:02:57]} 4. Nxd4 {[%clk 0:02:47]}  Nf6 {[%clk 0:02:57]} 5. Nc3 {[%clk 0:02:48]}  a6 {[%clk 0:02:57]} 6. Bd3 {[%clk 0:02:48]}  b5 {[%clk 0:02:48]} 7. a4 {[%clk 0:02:42]}  b4 {[%clk 0:02:40]} 8. Nd5 {[%clk 0:02:38]}  e6 {[%clk 0:02:23]} 9. Nxf6+ {[%clk 0:02:26]}  Qxf6 {[%clk 0:02:08]} 10. O-O {[%clk 0:02:27]}  Be7 {[%clk 0:01:55]} 11. a5 {[%clk 0:02:24]}  O-O {[%clk 0:01:49]} 12. Be3 {[%clk 0:02:24]}  Bb7 {[%clk 0:01:46]} 13. Qd2 {[%clk 0:02:20]}  d5 {[%clk 0:01:41]} 14. exd5 {[%clk 0:02:08]}  Bxd5 {[%clk 0:01:41]} 15. Ne2 {[%clk 0:01:37]}  Nc6 {[%clk 0:00:49]} 16. Nf4 {[%clk 0:01:34]}  Ne5 {[%clk 0:00:46]} 17. Nxd5 {[%clk 0:01:20]}  exd5 {[%clk 0:00:47]} 18. Bd4 {[%clk 0:01:17]}  Bd6 {[%clk 0:00:35]} 19. Rae1 {[%clk 0:00:48]}  Rfe8 {[%clk 0:00:28]} 20. c3 {[%clk 0:00:42]}  Qh4 {[%clk 0:00:21]} 21. Bxe5 {[%clk 0:00:19]}  Rxe5 {[%clk 0:00:22]} 22. Rxe5 {[%clk 0:00:15]}  Bxe5 {[%clk 0:00:22]} 23. f4 {[%clk 0:00:16]}  Bd6 {[%clk 0:00:21]} 24. cxb4 {[%clk 0:00:15]}  Qe7 {[%clk 0:00:20]} 25. b5 {[%clk 0:00:14]}  Bb4 {[%clk 0:00:19]} 26. Qe2 {[%clk 0:00:08]}  axb5 {[%clk 0:00:19]} 27. Qxe7 {[%clk 0:00:07]}  Bxe7 {[%clk 0:00:19]} 28. Ra1 {[%clk 0:00:08]}  b4 {[%clk 0:00:17]} 29. a6 {[%clk 0:00:08]}  Bc5+ {[%clk 0:00:17]} 30. Kf1 {[%clk 0:00:08]}  Kf8 {[%clk 0:00:18]} 31. Rc1 {[%clk 0:00:08]}  Bb6 {[%clk 0:00:18]} 32. Rc6 {[%clk 0:00:08]}  Bd4 {[%clk 0:00:19]} 33. b3 {[%clk 0:00:08]}  Ke7 {[%clk 0:00:19]} 34. Rc7+ {[%clk 0:00:08]}  Ke6 {[%clk 0:00:19]} 35. g4 {[%clk 0:00:07]}  g6 {[%clk 0:00:18]} 36. Ke2 {[%clk 0:00:06]}  h5 {[%clk 0:00:18]} 37. h3 {[%clk 0:00:06]}  hxg4 {[%clk 0:00:18]} 38. hxg4 {[%clk 0:00:07]}  Rh8 {[%clk 0:00:17]} 39. f5+ {[%clk 0:00:06]}  gxf5 {[%clk 0:00:17]} 40. Bxf5+ {[%clk 0:00:06]}  Kf6 {[%clk 0:00:16]} 41. Kf3 {[%clk 0:00:04]}  Rh3+ {[%clk 0:00:15]} 42. Kg2 {[%clk 0:00:03]}  Rxb3 {[%clk 0:00:15]} 43. Rd7 {[%clk 0:00:03]}  Ra3 {[%clk 0:00:15]} 44. Rxd5 {[%clk 0:00:03]}  Be5 {[%clk 0:00:15]} 45. Bd3 {[%clk 0:00:03]}  b3 {[%clk 0:00:15]} 46. Rb5 {[%clk 0:00:02]}  b2 {[%clk 0:00:15]} 47. g5+ {[%clk 0:00:02]}  Ke6 {[%clk 0:00:15]} 48. Bc4+ {[%clk 0:00:02]}  Kf5 {[%clk 0:00:15]} 49. Bxf7 {[%clk 0:00:01]}  Rxa6 {[%clk 0:00:15]} 50. g6 {[%clk 0:00:01]}  Kf6 {[%clk 0:00:14]} 51. Kf3 {[%clk 0:00:02]}  Ra1 {[%clk 0:00:13]} 52. Ke4 {[%clk 0:00:00]}  b1=Q+ {[%clk 0:00:13]} 0-1


[Site "https://www.chess.com"]

[Event "Titled Tuesday Blitz November 07 Late 2023"]
[White "Kochiev, Ivan"]
[Black "Korchmar, Vasiliy"]
[WhiteFideId "2917890"]
[BlackFideId "24131750"]
[WhiteElo "2535"]
[BlackElo "2763"]
[Result "0-1"]
[Round "8"]
[TimeControl "180+1"]
[Date "2023.11.07"]
[WhiteClock "0:00:00"]
[BlackClock "0:00:47"]
[Board "26"]

1. e4 {[%clk 0:03:00]}  c5 {[%clk 0:02:59]} 2. Nf3 {[%clk 0:03:00]}  d6 {[%clk 0:03:00]} 3. d4 {[%clk 0:03:01]}  cxd4 {[%clk 0:03:01]} 4. Nxd4 {[%clk 0:03:02]}  Nf6 {[%clk 0:03:02]} 5. f3 {[%clk 0:03:02]}  e5 {[%clk 0:03:01]} 6. Nb3 {[%clk 0:03:02]}  Be6 {[%clk 0:03:02]} 7. c4 {[%clk 0:03:02]}  Nbd7 {[%clk 0:03:03]} 8. Nc3 {[%clk 0:03:03]}  Rc8 {[%clk 0:03:03]} 9. Nd5 {[%clk 0:03:03]}  b5 {[%clk 0:03:02]} 10. Nxf6+ {[%clk 0:02:46]}  Nxf6 {[%clk 0:03:02]} 11. cxb5 {[%clk 0:02:45]}  d5 {[%clk 0:03:03]} 12. exd5 {[%clk 0:02:46]}  Nxd5 {[%clk 0:03:02]} 13. Bd2 {[%clk 0:02:41]}  Nb4 {[%clk 0:02:55]} 14. Bxb4 {[%clk 0:01:58]}  Bxb4+ {[%clk 0:02:55]} 15. Kf2 {[%clk 0:01:58]}  Qb6+ {[%clk 0:02:52]} 16. Kg3 {[%clk 0:01:54]}  O-O {[%clk 0:02:52]} 17. h3 {[%clk 0:01:38]}  Rfd8 {[%clk 0:02:51]} 18. Qe2 {[%clk 0:01:30]}  Bc4 {[%clk 0:02:49]} 19. Qe4 {[%clk 0:01:25]}  Qxb5 {[%clk 0:02:47]} 20. Kh2 {[%clk 0:01:11]}  a5 {[%clk 0:02:32]} 21. Rc1 {[%clk 0:01:00]}  Bxf1 {[%clk 0:02:24]} 22. Rhxf1 {[%clk 0:00:59]}  a4 {[%clk 0:02:25]} 23. Na1 {[%clk 0:00:49]}  Bd2 {[%clk 0:02:24]} 24. Rxc8 {[%clk 0:00:31]}  Rxc8 {[%clk 0:02:24]} 25. Rd1 {[%clk 0:00:30]}  Qxb2 {[%clk 0:02:23]} 26. Qxa4 {[%clk 0:00:19]}  h5 {[%clk 0:02:23]} 27. Qb3 {[%clk 0:00:11]}  Bf4+ {[%clk 0:02:23]} 28. Kh1 {[%clk 0:00:12]}  Qf2 {[%clk 0:02:23]} 29. Qd3 {[%clk 0:00:08]}  Qg3 {[%clk 0:02:23]} 30. Kg1 {[%clk 0:00:08]}  Rc6 {[%clk 0:01:48]} 31. Qf5 {[%clk 0:00:06]}  g6 {[%clk 0:01:23]} 32. Qd3 {[%clk 0:00:03]}  Kg7 {[%clk 0:00:54]} 33. Nc2 {[%clk 0:00:03]}  Rb6 {[%clk 0:00:54]} 34. a4 {[%clk 0:00:03]}  Rb2 {[%clk 0:00:55]} 35. Qc3 {[%clk 0:00:03]}  Qh2+ {[%clk 0:00:53]} 36. Kf2 {[%clk 0:00:02]}  Qg3+ {[%clk 0:00:46]} 37. Kf1 {[%clk 0:00:00]}  Ra2 {[%clk 0:00:47]} 0-1


[Site "https://www.chess.com"]

[Event "Titled Tuesday Blitz November 07 Late 2023"]
[White "Prithu Gupta"]
[Black "Hambleton, Aman"]
[WhiteFideId "46618546"]
[BlackFideId "2606577"]
[WhiteElo "2413"]
[BlackElo "2752"]
[Result "1-0"]
[Round "8"]
[TimeControl "180+1"]
[Date "2023.11.07"]
[WhiteClock "0:00:03"]
[BlackClock "0:00:02"]
[Board "27"]

1. d4 {[%clk 0:03:00]}  e5 {[%clk 0:02:58]} 2. dxe5 {[%clk 0:02:59]}  Nc6 {[%clk 0:02:58]} 3. Nf3 {[%clk 0:02:59]}  Qe7 {[%clk 0:02:59]} 4. e3 {[%clk 0:02:57]}  Nxe5 {[%clk 0:02:59]} 5. Nbd2 {[%clk 0:02:56]}  Nf6 {[%clk 0:02:57]} 6. Be2 {[%clk 0:02:56]}  d5 {[%clk 0:02:57]} 7. c4 {[%clk 0:02:57]}  Nxc4 {[%clk 0:01:56]} 8. Nxc4 {[%clk 0:02:46]}  dxc4 {[%clk 0:01:57]} 9. Qa4+ {[%clk 0:02:45]}  Bd7 {[%clk 0:01:30]} 10. Qxc4 {[%clk 0:02:42]}  Qb4+ {[%clk 0:01:30]} 11. Bd2 {[%clk 0:02:35]}  Qxc4 {[%clk 0:01:29]} 12. Bxc4 {[%clk 0:02:35]}  Ne4 {[%clk 0:01:00]} 13. Ne5 {[%clk 0:02:06]}  Nxd2 {[%clk 0:00:55]} 14. Kxd2 {[%clk 0:02:07]}  Bb4+ {[%clk 0:00:16]} 15. Ke2 {[%clk 0:02:05]}  f6 {[%clk 0:00:15]} 16. Nd3 {[%clk 0:01:27]}  Bd6 {[%clk 0:00:14]} 17. Rac1 {[%clk 0:01:16]}  O-O-O {[%clk 0:00:13]} 18. h3 {[%clk 0:01:13]}  Rhe8 {[%clk 0:00:12]} 19. Rhd1 {[%clk 0:01:11]}  Kb8 {[%clk 0:00:12]} 20. Ne1 {[%clk 0:00:48]}  Bc8 {[%clk 0:00:10]} 21. Nf3 {[%clk 0:00:47]}  c6 {[%clk 0:00:07]} 22. Bd3 {[%clk 0:00:38]}  g6 {[%clk 0:00:07]} 23. Bc4 {[%clk 0:00:28]}  Re7 {[%clk 0:00:04]} 24. Rd2 {[%clk 0:00:18]}  Kc7 {[%clk 0:00:02]} 25. Rcd1 {[%clk 0:00:17]}  Red7 {[%clk 0:00:01]} 26. Be6 {[%clk 0:00:14]}  Re7 {[%clk 0:00:01]} 27. Bxc8 {[%clk 0:00:15]}  Rxc8 {[%clk 0:00:01]} 28. Rxd6 {[%clk 0:00:15]}  Rce8 {[%clk 0:00:02]} 29. R6d2 {[%clk 0:00:15]}  a6 {[%clk 0:00:02]} 30. Nd4 {[%clk 0:00:15]}  f5 {[%clk 0:00:02]} 31. g3 {[%clk 0:00:11]}  Re4 {[%clk 0:00:02]} 32. Nf3 {[%clk 0:00:11]}  Rb4 {[%clk 0:00:01]} 33. b3 {[%clk 0:00:11]}  Re7 {[%clk 0:00:02]} 34. Nd4 {[%clk 0:00:10]}  a5 {[%clk 0:00:01]} 35. Nc2 {[%clk 0:00:10]}  Rb5 {[%clk 0:00:02]} 36. Na3 {[%clk 0:00:10]}  Rb4 {[%clk 0:00:02]} 37. Nc4 {[%clk 0:00:11]}  a4 {[%clk 0:00:03]} 38. Rd3 {[%clk 0:00:08]}  axb3 {[%clk 0:00:03]} 39. axb3 {[%clk 0:00:09]}  b5 {[%clk 0:00:01]} 40. Nd2 {[%clk 0:00:09]}  Kb6 {[%clk 0:00:01]} 41. Nf3 {[%clk 0:00:09]}  Ra7 {[%clk 0:00:02]} 42. R1d2 {[%clk 0:00:09]}  Ra3 {[%clk 0:00:02]} 43. Nd4 {[%clk 0:00:09]}  c5 {[%clk 0:00:02]} 44. Ne6 {[%clk 0:00:09]}  Rbxb3 {[%clk 0:00:02]} 45. Rd6+ {[%clk 0:00:08]}  Ka5 {[%clk 0:00:03]} 46. Nxc5 {[%clk 0:00:08]}  Rc3 {[%clk 0:00:03]} 47. Nb7+ {[%clk 0:00:07]}  Kb4 {[%clk 0:00:02]} 48. R2d4+ {[%clk 0:00:06]}  Kb3 {[%clk 0:00:02]} 49. Rd3 {[%clk 0:00:04]}  b4 {[%clk 0:00:02]} 50. Nc5+ {[%clk 0:00:03]}  Kc2 {[%clk 0:00:03]} 51. Rd2+ {[%clk 0:00:04]}  Kb1 {[%clk 0:00:03]} 52. Rd1+ {[%clk 0:00:04]}  Kb2 {[%clk 0:00:03]} 53. R6d2+ {[%clk 0:00:04]}  Rc2 {[%clk 0:00:04]} 54. Nd3+ {[%clk 0:00:04]}  Kc3 {[%clk 0:00:04]} 55. Rxc2+ {[%clk 0:00:04]}  Kxc2 {[%clk 0:00:05]} 56. Nxb4+ {[%clk 0:00:05]}  Kc3 {[%clk 0:00:04]} 57. Nd5+ {[%clk 0:00:05]}  Kc4 {[%clk 0:00:04]} 58. Nf6 {[%clk 0:00:06]}  Ra7 {[%clk 0:00:04]} 59. Rd7 {[%clk 0:00:05]}  Ra2+ {[%clk 0:00:03]} 60. Kf3 {[%clk 0:00:06]}  h6 {[%clk 0:00:04]} 61. Ng8 {[%clk 0:00:06]}  h5 {[%clk 0:00:02]} 62. Rd6 {[%clk 0:00:06]}  g5 {[%clk 0:00:03]} 63. Nf6 {[%clk 0:00:05]}  g4+ {[%clk 0:00:03]} 64. hxg4 {[%clk 0:00:05]}  hxg4+ {[%clk 0:00:04]} 65. Kg2 {[%clk 0:00:05]}  Ra5 {[%clk 0:00:02]} 66. Nh5 {[%clk 0:00:05]}  Kc5 {[%clk 0:00:02]} 67. Rf6 {[%clk 0:00:05]}  Kc4 {[%clk 0:00:03]} 68. Ng7 {[%clk 0:00:05]}  Kd3 {[%clk 0:00:03]} 69. Rxf5 {[%clk 0:00:05]}  Ra2 {[%clk 0:00:03]} 70. Nh5 {[%clk 0:00:05]}  Ke2 {[%clk 0:00:04]} 71. Nf6 {[%clk 0:00:05]}  Ra4 {[%clk 0:00:03]} 72. Rf4 {[%clk 0:00:05]}  Ra6 {[%clk 0:00:04]} 73. Nxg4 {[%clk 0:00:06]}  Ke1 {[%clk 0:00:04]} 74. e4 {[%clk 0:00:06]}  Ke2 {[%clk 0:00:01]} 75. e5 {[%clk 0:00:07]}  Kd3 {[%clk 0:00:02]} 76. Rf6 {[%clk 0:00:07]}  Ra7 {[%clk 0:00:03]} 77. f4 {[%clk 0:00:07]}  Ke4 {[%clk 0:00:03]} 78. e6 {[%clk 0:00:06]}  Ra2+ {[%clk 0:00:03]} 79. Kh3 {[%clk 0:00:06]}  Ra5 {[%clk 0:00:01]} 80. e7 {[%clk 0:00:06]}  Kf3 {[%clk 0:00:02]} 81. Ne5+ {[%clk 0:00:06]}  Kf2 {[%clk 0:00:02]} 82. e8=Q {[%clk 0:00:06]}  Ra2 {[%clk 0:00:02]} 83. Qc6 {[%clk 0:00:06]}  Kg1 {[%clk 0:00:02]} 84. Qc1+ {[%clk 0:00:04]}  Kf2 {[%clk 0:00:02]} 85. Ng4+ {[%clk 0:00:03]}  Kf3 {[%clk 0:00:02]} 86. Qe3# {[%clk 0:00:03]} 1-0


[Site "https://www.chess.com"]